fUSD/lending_fUSD_20260611
["ID","MTS","AMOUNT","RATE_DAILY","PERIOD"]
[424784082,1781160644000,-150.0,0.00014594,2]
[424784070,1781160644000,-150.0,0.00014534,2]
[424784078,1781160644000,-150.0,0.00014558,2]
[424784076,1781160644000,-150.0,0.00014558,2]
[424784075,1781160644000,-178.739316,0.00014538,2]
[424784072,1781160644000,-337.46010947,0.00014535,2]
[424784077,1781160644000,-150.0,0.00014558,2]
[424784073,1781160644000,-162.04965265,0.00014535,2]
[424784080,1781160644000,-150.0,0.00014578,2]
[424784071,1781160644000,-187.4778386,0.00014535,2]
[424784081,1781160644000,-150.0,0.0001459,2]
[424784074,1781160644000,-291.68937477,0.00014535,2]
[424784148,1781160645000,-152.0,0.000149,3]
[424784158,1781160645000,-151.0,0.000149,3]
[424784157,1781160645000,-151.0,0.000149,3]
[424784149,1781160645000,-152.0,0.000149,3]
[424784152,1781160645000,-152.0,0.000149,3]
[424784142,1781160645000,-500.0,0.00014899,2]
[424784147,1781160645000,-152.0,0.000149,3]
[424784151,1781160645000,-152.0,0.000149,3]
[424784145,1781160645000,-33277.9515,0.000149,2]
[424784146,1781160645000,-219.97283573,0.000149,3]
[424784155,1781160645000,-151.0,0.000149,3]
[424784150,1781160645000,-152.0,0.000149,3]
[424784153,1781160645000,-215.83684948,0.000149,3]
[424784180,1781160645000,-500.0,0.00014946,2]
[424784154,1781160645000,-151.0,0.000149,3]
[424784161,1781160645000,-151.0,0.000149,3]
[424784162,1781160645000,-301.16322638,0.000149,3]
[424784159,1781160645000,-151.0,0.000149,3]
[424784164,1781160645000,-10000.0,0.000149,2]
[424784163,1781160645000,-151.94160012,0.000149,3]
[424784160,1781160645000,-151.0,0.000149,3]
[424784166,1781160645000,-2000.0,0.000149,2]
[424784165,1781160645000,-1300.0,0.000149,5]
[424784178,1781160645000,-4800.96391985,0.00014945,2]
[424784176,1781160645000,-150.0,0.00014943,2]
[424784144,1781160645000,-1134.94,0.00014899,2]
[424784156,1781160645000,-151.0,0.000149,3]
[424784143,1781160645000,-500.0,0.00014899,2]
[424784112,1781160645000,-500.0,0.00014745,2]
[424784136,1781160645000,-162.13261455,0.00014847,2]
[424784116,1781160645000,-1134.94,0.00014745,2]
[424784115,1781160645000,-500.0,0.00014745,2]
[424784114,1781160645000,-500.0,0.00014745,2]
[424784113,1781160645000,-500.0,0.00014745,2]
[424784118,1781160645000,-1134.94,0.00014745,2]
[424784117,1781160645000,-1134.94,0.00014745,2]
[424784128,1781160645000,-1300.0,0.000148,5]
[424784119,1781160645000,-552203.3085238,0.00014746,2]
[424784121,1781160645000,-6000.4030501,0.00014746,2]
[424784129,1781160645000,-150.0,0.00014808,2]
[424784120,1781160645000,-132413.9738946,0.00014746,2]
[424784122,1781160645000,-150.0,0.0001476,2]
[424784134,1781160645000,-150.0,0.00014844,2]
[424784123,1781160645000,-150.0,0.00014772,2]
[424784167,1781160645000,-1620.58443615,0.000149,2]
[424784127,1781160645000,-745.81400058,0.000148,2]
[424784126,1781160645000,-150.0,0.00014788,2]
[424784141,1781160645000,-162.13261455,0.00014898,2]
[424784130,1781160645000,-150.0,0.00014815,2]
[424784139,1781160645000,-150.0,0.00014873,2]
[424784137,1781160645000,-150.0,0.0001485,2]
[424784132,1781160645000,-177.25,0.00014837,2]
[424784133,1781160645000,-5800.0,0.00014841,2]
[424784131,1781160645000,-150.0,0.00014817,2]
[424784135,1781160645000,-150.0,0.00014845,2]
[424784140,1781160645000,-150.0,0.00014879,2]
[424784125,1781160645000,-150.0,0.00014772,2]
[424784171,1781160645000,-3000.0,0.00014928,2]
[424784124,1781160645000,-150.0,0.00014772,2]
[424784170,1781160645000,-150.0,0.00014915,2]
[424784208,1781160645000,-399.31780529,0.00014999,2]
[424784216,1781160645000,-500.0,0.00014999,2]
[424784209,1781160645000,-500.0,0.00014999,2]
[424784213,1781160645000,-500.0,0.00014999,2]
[424784210,1781160645000,-500.0,0.00014999,2]
[424784211,1781160645000,-500.0,0.00014999,2]
[424784214,1781160645000,-500.0,0.00014999,2]
[424784215,1781160645000,-500.0,0.00014999,2]
[424784217,1781160645000,-500.0,0.00014999,2]
[424784218,1781160645000,-500.0,0.00014999,2]
[424784229,1781160645000,-500.0,0.00014999,2]
[424784220,1781160645000,-500.0,0.00014999,2]
[424784228,1781160645000,-500.0,0.00014999,2]
[424784221,1781160645000,-500.0,0.00014999,2]
[424784219,1781160645000,-500.0,0.00014999,2]
[424784224,1781160645000,-500.0,0.00014999,2]
[424784223,1781160645000,-500.0,0.00014999,2]
[424784225,1781160645000,-500.0,0.00014999,2]
[424784222,1781160645000,-500.0,0.00014999,2]
[424784226,1781160645000,-500.0,0.00014999,2]
[424784227,1781160645000,-500.0,0.00014999,2]
[424784230,1781160645000,-500.0,0.00014999,2]
[424784232,1781160645000,-500.0,0.00014999,2]
[424784234,1781160645000,-500.0,0.00014999,2]
[424784231,1781160645000,-500.0,0.00014999,2]
[424784233,1781160645000,-500.0,0.00014999,2]
[424784173,1781160645000,-575.73060654,0.00014928,2]
[424784212,1781160645000,-500.0,0.00014999,2]
[424784207,1781160645000,-500.0,0.00014999,2]
[424784138,1781160645000,-150.0,0.00014858,2]
[424784206,1781160645000,-500.0,0.00014999,2]
[424784205,1781160645000,-500.0,0.00014999,2]
[424784172,1781160645000,-151.79021661,0.00014928,2]
[424784168,1781160645000,-150.0,0.00014901,2]
[424784174,1781160645000,-150.0,0.0001493,2]
[424784183,1781160645000,-150.0,0.00014951,2]
[424784187,1781160645000,-3369.80654073,0.00014971,2]
[424784186,1781160645000,-3369.80654073,0.00014959,2]
[424784185,1781160645000,-150.0,0.00014958,2]
[424784190,1781160645000,-4800.96391985,0.00014986,2]
[424784184,1781160645000,-2369.55727079,0.00014957,2]
[424784188,1781160645000,-3369.80654073,0.00014985,2]
[424784182,1781160645000,-162.13261455,0.00014949,2]
[424784189,1781160645000,-150.0,0.00014985,2]
[424784192,1781160645000,-285.87761885,0.00014986,2]
[424784181,1781160645000,-4800.96391985,0.00014947,2]
[424784204,1781160645000,-500.0,0.00014999,2]
[424784191,1781160645000,-257.36274763,0.00014986,2]
[424784199,1781160645000,-162.18392877,0.0001499,2]
[424784200,1781160645000,-151.0,0.00014997,2]
[424784197,1781160645000,-208.1114482,0.00014986,2]
[424784169,1781160645000,-150.0,0.00014901,2]
[424784202,1781160645000,-500.0,0.00014999,2]
[424784203,1781160645000,-500.0,0.00014999,2]
[424784195,1781160645000,-248.12091067,0.00014986,2]
[424784198,1781160645000,-150.75812701,0.00014986,2]
[424784193,1781160645000,-210.0975545,0.00014986,2]
[424784196,1781160645000,-225.43309031,0.00014986,2]
[424784194,1781160645000,-276.09958385,0.00014986,2]
[424784201,1781160645000,-151.0,0.00014997,2]
[424784257,1781160646000,-500.0,0.00014999,2]
[424784277,1781160646000,-500.0,0.00014999,2]
[424784261,1781160646000,-500.0,0.00014999,2]
[424784266,1781160646000,-500.0,0.00014999,2]
[424784265,1781160646000,-500.0,0.00014999,2]
[424784264,1781160646000,-500.0,0.00014999,2]
[424784256,1781160646000,-500.0,0.00014999,2]
[424784267,1781160646000,-500.0,0.00014999,2]
[424784269,1781160646000,-500.0,0.00014999,2]
[424784278,1781160646000,-500.0,0.00014999,2]
[424784271,1781160646000,-500.0,0.00014999,2]
[424784275,1781160646000,-500.0,0.00014999,2]
[424784268,1781160646000,-500.0,0.00014999,2]
[424784280,1781160646000,-500.0,0.00014999,2]
[424784279,1781160646000,-500.0,0.00014999,2]
[424784273,1781160646000,-500.0,0.00014999,2]
[424784272,1781160646000,-500.0,0.00014999,2]
[424784270,1781160646000,-500.0,0.00014999,2]
[424784274,1781160646000,-500.0,0.00014999,2]
[424784260,1781160646000,-500.0,0.00014999,2]
[424784276,1781160646000,-500.0,0.00014999,2]
[424784262,1781160646000,-500.0,0.00014999,2]
[424784244,1781160646000,-500.0,0.00014999,2]
[424784258,1781160646000,-500.0,0.00014999,2]
[424784238,1781160646000,-500.0,0.00014999,2]
[424784237,1781160646000,-500.0,0.00014999,2]
[424784235,1781160646000,-500.0,0.00014999,2]
[424784241,1781160646000,-500.0,0.00014999,2]
[424784236,1781160646000,-500.0,0.00014999,2]
[424784239,1781160646000,-500.0,0.00014999,2]
[424784240,1781160646000,-500.0,0.00014999,2]
[424784242,1781160646000,-500.0,0.00014999,2]
[424784282,1781160646000,-500.0,0.00014999,2]
[424784243,1781160646000,-500.0,0.00014999,2]
[424784245,1781160646000,-500.0,0.00014999,2]
[424784254,1781160646000,-500.0,0.00014999,2]
[424784246,1781160646000,-500.0,0.00014999,2]
[424784249,1781160646000,-500.0,0.00014999,2]
[424784247,1781160646000,-500.0,0.00014999,2]
[424784252,1781160646000,-500.0,0.00014999,2]
[424784251,1781160646000,-500.0,0.00014999,2]
[424784250,1781160646000,-500.0,0.00014999,2]
[424784253,1781160646000,-500.0,0.00014999,2]
[424784248,1781160646000,-500.0,0.00014999,2]
[424784255,1781160646000,-500.0,0.00014999,2]
[424784259,1781160646000,-500.0,0.00014999,2]
[424784284,1781160646000,-500.0,0.00014999,2]
[424784263,1781160646000,-500.0,0.00014999,2]
[424784281,1781160646000,-500.0,0.00014999,2]
[424784312,1781160646000,-2000.0,0.00015,2]
[424784311,1781160646000,-150.0,0.00015,2]
[424784308,1781160646000,-666.0,0.00014999,2]
[424784314,1781160646000,-2000.0,0.00015,2]
[424784325,1781160646000,-400.0,0.00015,2]
[424784317,1781160646000,-2000.0,0.00015,2]
[424784316,1781160646000,-613.54,0.00015,2]
[424784315,1781160646000,-2000.0,0.00015,2]
[424784313,1781160646000,-2000.0,0.00015,2]
[424784324,1781160646000,-262.9015644,0.00015,2]
[424784319,1781160646000,-2000.0,0.00015,2]
[424784318,1781160646000,-1588.98,0.00015,2]
[424784322,1781160646000,-725.98,0.00015,2]
[424784321,1781160646000,-1742.36,0.00015,2]
[424784323,1781160646000,-435.59,0.00015,2]
[424784326,1781160646000,-6533.64446171,0.00015,2]
[424784328,1781160646000,-200.0,0.00015,2]
[424784329,1781160646000,-164.33069,0.00015,2]
[424784327,1781160646000,-200.0,0.00015,2]
[424784330,1781160646000,-164.33069,0.00015,2]
[424784293,1781160646000,-1134.94,0.00014999,2]
[424784310,1781160646000,-605.42,0.00015,2]
[424784309,1781160646000,-4396840.5304911,0.00015,2]
[424784320,1781160646000,-153.38,0.00015,2]
[424784306,1781160646000,-300.0,0.00014999,2]
[424784292,1781160646000,-1134.94,0.00014999,2]
[424784307,1781160646000,-300.0,0.00014999,2]
[424784283,1781160646000,-500.0,0.00014999,2]
[424784285,1781160646000,-500.0,0.00014999,2]
[424784288,1781160646000,-500.0,0.00014999,2]
[424784290,1781160646000,-1000.0,0.00014999,2]
[424784287,1781160646000,-500.0,0.00014999,2]
[424784289,1781160646000,-500.0,0.00014999,2]
[424784291,1781160646000,-346.1279258,0.00014999,2]
[424784295,1781160646000,-1134.94,0.00014999,2]
[424784294,1781160646000,-1134.94,0.00014999,2]
[424784286,1781160646000,-500.0,0.00014999,2]
[424784297,1781160646000,-1134.94,0.00014999,2]
[424784298,1781160646000,-1135.07347202,0.00014999,2]
[424784300,1781160646000,-300.0,0.00014999,2]
[424784303,1781160646000,-300.0,0.00014999,2]
[424784302,1781160646000,-666.0,0.00014999,2]
[424784299,1781160646000,-300.0,0.00014999,2]
[424784301,1781160646000,-300.0,0.00014999,2]
[424784305,1781160646000,-666.0,0.00014999,2]
[424784296,1781160646000,-1134.94,0.00014999,2]
[424784304,1781160646000,-300.0,0.00014999,2]
[424784374,1781160647000,-400.0,0.000152,2]
[424784368,1781160647000,-4800.96391985,0.00015183,2]
[424784369,1781160647000,-3369.80654073,0.00015184,2]
[424784366,1781160647000,-4800.96391985,0.00015154,2]
[424784372,1781160647000,-377.99479175,0.00015199,2]
[424784371,1781160647000,-300.0,0.00015199,2]
[424784377,1781160647000,-4800.96391985,0.00015201,2]
[424784370,1781160647000,-4800.96391985,0.00015193,2]
[424784367,1781160647000,-4800.96391985,0.00015158,2]
[424784364,1781160647000,-200.0,0.0001515,2]
[424784376,1781160647000,-923.0,0.000152,2]
[424784379,1781160647000,-1613.0535,0.00015243,2]
[424784378,1781160647000,-3369.80654073,0.00015216,2]
[424784375,1781160647000,-6533.64446171,0.000152,2]
[424784392,1781160647000,-3000.0,0.00015438,2]
[424784380,1781160647000,-200.0,0.00015259,2]
[424784386,1781160647000,-200.0,0.00015301,2]
[424784381,1781160647000,-300.0,0.00015299,2]
[424784382,1781160647000,-400.0,0.000153,2]
[424784390,1781160647000,-2000.0,0.00015438,2]
[424784385,1781160647000,-200.0,0.00015301,2]
[424784383,1781160647000,-6533.64446171,0.000153,2]
[424784389,1781160647000,-2000.0,0.00015438,2]
[424784384,1781160647000,-200.0,0.00015301,2]
[424784387,1781160647000,-2006.0,0.000154,2]
[424784391,1781160647000,-184.44,0.00015438,2]
[424784388,1781160647000,-300.0,0.00015437,2]
[424784362,1781160647000,-200.0,0.0001515,2]
[424784394,1781160647000,-200.0,0.00015455,2]
[424784373,1781160647000,-1285.23409704,0.00015199,2]
[424784363,1781160647000,-200.0,0.0001515,2]
[424784339,1781160647000,-1064.597968,0.00015,2]
[424784359,1781160647000,-300.0,0.0001515,2]
[424784396,1781160647000,-200.0,0.00015455,2]
[424784333,1781160647000,-200.0,0.00015,2]
[424784332,1781160647000,-164.33069,0.00015,2]
[424784337,1781160647000,-1064.597968,0.00015,2]
[424784335,1781160647000,-150.71381454,0.00015,2]
[424784334,1781160647000,-151.0,0.00015,2]
[424784331,1781160647000,-164.33069,0.00015,2]
[424784338,1781160647000,-1064.597968,0.00015,2]
[424784336,1781160647000,-151.0,0.00015,2]
[424784341,1781160647000,-151.0,0.00015,2]
[424784351,1781160647000,-151.0,0.00015068,2]
[424784344,1781160647000,-3369.80654073,0.00015009,2]
[424784353,1781160647000,-3369.80654073,0.00015093,2]
[424784352,1781160647000,-3369.80654073,0.00015071,2]
[424784365,1781160647000,-10000.0,0.00015151,2]
[424784343,1781160647000,-3369.80654073,0.00015003,2]
[424784342,1781160647000,-151.0,0.00015,2]
[424784346,1781160647000,-3369.80654073,0.00015018,2]
[424784349,1781160647000,-3369.80654073,0.00015048,2]
[424784347,1781160647000,-4800.96391985,0.0001502,2]
[424784350,1781160647000,-4800.96391985,0.00015051,2]
[424784348,1781160647000,-4800.96391985,0.00015026,2]
[424784345,1781160647000,-3369.80654073,0.00015011,2]
[424784354,1781160647000,-3369.80654073,0.00015099,2]
[424784356,1781160647000,-3369.80654073,0.00015102,2]
[424784360,1781160647000,-300.0,0.0001515,2]
[424784361,1781160647000,-300.0,0.0001515,2]
[424784357,1781160647000,-4800.96391985,0.00015108,2]
[424784358,1781160647000,-3369.80654073,0.00015121,2]
[424784355,1781160647000,-3369.80654073,0.000151,2]
[424784340,1781160647000,-1064.597968,0.00015,2]
[424784397,1781160647000,-168.90688265,0.00015475,2]
[424784427,1781160647000,-200.0,0.000159,2]
[424784395,1781160647000,-200.0,0.00015455,2]
[424784434,1781160647000,-150.0,0.00016,2]
[424784437,1781160647000,-150.0,0.00016,2]
[424784435,1781160647000,-150.0,0.00016,2]
[424784438,1781160647000,-150.0,0.00016,2]
[424784436,1781160647000,-150.0,0.00016,2]
[424784439,1781160647000,-261.52,0.00016,2]
[424784440,1781160647000,-300.0,0.00016,2]
[424784433,1781160647000,-150.0,0.00016,2]
[424784441,1781160647000,-191.99780672,0.00016,2]
[424784442,1781160647000,-4800.96391985,0.00016041,2]
[424784443,1781160647000,-3369.80654073,0.00016043,2]
[424784445,1781160647000,-4800.96391985,0.00016062,2]
[424784444,1781160647000,-4800.96391985,0.00016062,2]
[424784447,1781160647000,-3369.80654073,0.00016068,2]
[424784432,1781160647000,-150.0,0.00016,2]
[424784457,1781160647000,-246.782593,0.00016106,2]
[424784446,1781160647000,-4800.96391985,0.00016062,2]
[424784448,1781160647000,-500.0,0.00016082,2]
[424784450,1781160647000,-500.0,0.00016082,2]
[424784449,1781160647000,-500.0,0.00016082,2]
[424784452,1781160647000,-2369.55727079,0.00016083,2]
[424784451,1781160647000,-989.0,0.00016082,2]
[424784455,1781160647000,-3369.80654073,0.000161,2]
[424784456,1781160647000,-6533.64446171,0.000161,2]
[424784453,1781160647000,-151.3964082,0.00016091,2]
[424784454,1781160647000,-213.31072395,0.00016095,2]
[424784459,1781160647000,-3369.80654073,0.00016119,2]
[424784461,1781160647000,-300.0,0.00016199,2]
[424784462,1781160647000,-300.0,0.00016199,2]
[424784404,1781160647000,-300.0,0.00015571,2]
[424784458,1781160647000,-7717.02363909,0.0001611,15]
[424784424,1781160647000,-6533.64446171,0.000159,2]
[424784460,1781160647000,-300.0,0.00016199,2]
[424784429,1781160647000,-294.0,0.000159,5]
[424784428,1781160647000,-239.0,0.000159,5]
[424784405,1781160647000,-300.0,0.00015571,2]
[424784399,1781160647000,-1743.52,0.000155,2]
[424784398,1781160647000,-300.0,0.00015499,2]
[424784402,1781160647000,-6533.64446171,0.000155,2]
[424784400,1781160647000,-1785.73,0.000155,2]
[424784403,1781160647000,-20184.37238519,0.00015524,2]
[424784401,1781160647000,-400.0,0.000155,2]
[424784406,1781160647000,-300.0,0.00015571,2]
[424784411,1781160647000,-6533.64446171,0.000156,2]
[424784410,1781160647000,-400.0,0.000156,2]
[424784408,1781160647000,-300.0,0.00015571,2]
[424784409,1781160647000,-300.0,0.00015599,2]
[424784413,1781160647000,-200.0,0.00015609,2]
[424784415,1781160647000,-2129.0,0.00015706,2]
[424784393,1781160647000,-1285.76,0.00015438,2]
[424784418,1781160647000,-6533.64446171,0.000158,2]
[424784412,1781160647000,-186.42258085,0.000156,2]
[424784425,1781160647000,-309.0,0.000159,2]
[424784426,1781160647000,-1000.0,0.000159,2]
[424784422,1781160647000,-500.0,0.00015808,2]
[424784419,1781160647000,-2000.0,0.000158,2]
[424784421,1781160647000,-500.0,0.00015808,2]
[424784423,1781160647000,-946.0,0.00015808,2]
[424784430,1781160647000,-318.0,0.000159,5]
[424784420,1781160647000,-316.0,0.000158,2]
[424784416,1781160647000,-1672.7364795,0.00015791,2]
[424784417,1781160647000,-300.0,0.00015799,2]
[424784407,1781160647000,-666.0,0.00015571,2]
[424784414,1781160647000,-200.0,0.00015609,2]
[424784431,1781160647000,-150.0,0.00016,2]
[424784503,1781160648000,-350.0,0.00017378,2]
[424784510,1781160648000,-1134.51961,0.0001782,2]
[424784505,1781160648000,-350.0,0.00017525,2]
[424784507,1781160648000,-1134.5196,0.0001782,2]
[424784500,1781160648000,-350.0,0.00017217,2]
[424784495,1781160648000,-2000.0,0.00016801,7]
[424784513,1781160648000,-165.78,0.00017877,2]
[424784512,1781160648000,-200.0,0.00017855,2]
[424784511,1781160648000,-1134.5196,0.0001782,2]
[424784501,1781160648000,-10589.39369475,0.00017241,2]
[424784498,1781160648000,-177.25,0.00016957,2]
[424784497,1781160648000,-1798.80895522,0.00016887,2]
[424784502,1781160648000,-3620.0,0.00017275,2]
[424784508,1781160648000,-1134.5196,0.0001782,2]
[424784523,1781160648000,-7884.3262389,0.00018,2]
[424784506,1781160648000,-350.0,0.0001779,2]
[424784527,1781160648000,-500.0,0.00018,7]
[424784492,1781160648000,-20184.37238519,0.00016712,2]
[424784521,1781160648000,-150.00000001,0.00018,2]
[424784525,1781160648000,-500.0,0.00018,7]
[424784526,1781160648000,-500.0,0.00018,7]
[424784520,1781160648000,-666.0,0.00017999,2]
[424784504,1781160648000,-1865.36488656,0.00017435,2]
[424784518,1781160648000,-300.0,0.00017999,2]
[424784519,1781160648000,-300.0,0.00017999,2]
[424784522,1781160648000,-1574168.70632842,0.00018,4]
[424784524,1781160648000,-227.69822417,0.00018,2]
[424784515,1781160648000,-350.0,0.00017945,2]
[424784517,1781160648000,-300.0,0.00017999,2]
[424784514,1781160648000,-20184.37238519,0.000179,2]
[424784516,1781160648000,-1934.38338736,0.00017983,2]
[424784491,1781160648000,-1051.47983417,0.00016706,2]
[424784475,1781160648000,-500.0,0.00016356,2]
[424784496,1781160648000,-168.90688265,0.00016853,2]
[424784528,1781160648000,-585.99,0.00018,7]
[424784471,1781160648000,-1734.62772924,0.00016339,2]
[424784463,1781160648000,-666.0,0.00016199,2]
[424784472,1781160648000,-500.0,0.00016356,2]
[424784464,1781160648000,-300.0,0.00016199,2]
[424784467,1781160648000,-12942.03,0.000162,2]
[424784470,1781160648000,-388.61104204,0.0001627,2]
[424784468,1781160648000,-297.99,0.000162,2]
[424784469,1781160648000,-259.22154144,0.00016257,2]
[424784466,1781160648000,-3685.07,0.000162,2]
[424784465,1781160648000,-6533.64446171,0.000162,2]
[424784474,1781160648000,-500.0,0.00016356,2]
[424784485,1781160648000,-186.42258085,0.00016438,2]
[424784477,1781160648000,-6533.64446171,0.000164,2]
[424784499,1781160648000,-575.2559993,0.00016987,2]
[424784486,1781160648000,-165.22182313,0.00016438,2]
[424784483,1781160648000,-283.348021,0.00016438,2]
[424784484,1781160648000,-210.5142994,0.00016438,2]
[424784478,1781160648000,-1046.1,0.00016432,2]
[424784476,1781160648000,-625.0,0.00016356,2]
[424784482,1781160648000,-267.87513085,0.00016438,2]
[424784480,1781160648000,-397.7,0.00016438,2]
[424784481,1781160648000,-378.49102051,0.00016438,2]
[424784479,1781160648000,-1071.45,0.00016432,2]
[424784488,1781160648000,-154.610542,0.00016438,2]
[424784487,1781160648000,-186.81259317,0.00016438,2]
[424784489,1781160648000,-240.87416947,0.00016438,2]
[424784490,1781160648000,-605.42,0.000165,2]
[424784494,1781160648000,-300.0,0.00016735,2]
[424784493,1781160648000,-1089.0,0.00016715,2]
[424784473,1781160648000,-500.0,0.00016356,2]
[424784529,1781160648000,-1000.0,0.00018,2]
[424784576,1781160648000,-164.33069,0.0001805,2]
[424784541,1781160648000,-1000.0,0.00018,2]
[424784561,1781160648000,-503.53599786,0.00018,2]
[424784562,1781160648000,-691.0,0.00018,2]
[424784569,1781160648000,-177.357647,0.0001805,2]
[424784573,1781160648000,-164.33069,0.0001805,2]
[424784572,1781160648000,-177.357647,0.0001805,2]
[424784571,1781160648000,-177.357647,0.0001805,2]
[424784597,1781160648000,-1064.597968,0.0001805,2]
[424784574,1781160648000,-164.33069,0.0001805,2]
[424784579,1781160648000,-151.0,0.0001805,2]
[424784580,1781160648000,-151.0,0.0001805,2]
[424784577,1781160648000,-151.0,0.0001805,2]
[424784578,1781160648000,-151.0,0.0001805,2]
[424784575,1781160648000,-164.33069,0.0001805,2]
[424784570,1781160648000,-177.357647,0.0001805,2]
[424784560,1781160648000,-1134.5196,0.00018,2]
[424784581,1781160648000,-151.0,0.0001805,2]
[424784583,1781160648000,-151.0,0.0001805,2]
[424784587,1781160648000,-391.895786,0.0001805,2]
[424784589,1781160648000,-151.0,0.0001805,2]
[424784595,1781160648000,-1064.597968,0.0001805,2]
[424784590,1781160648000,-151.0,0.0001805,2]
[424784586,1781160648000,-391.895786,0.0001805,2]
[424784584,1781160648000,-391.895786,0.0001805,2]
[424784591,1781160648000,-151.0,0.0001805,2]
[424784594,1781160648000,-151.0,0.0001805,2]
[424784530,1781160648000,-1000.0,0.00018,2]
[424784585,1781160648000,-391.895786,0.0001805,2]
[424784592,1781160648000,-151.0,0.0001805,2]
[424784593,1781160648000,-151.0,0.0001805,2]
[424784596,1781160648000,-1064.597968,0.0001805,2]
[424784582,1781160648000,-151.0,0.0001805,2]
[424784558,1781160648000,-350.0,0.00018,2]
[424784588,1781160648000,-151.0,0.0001805,2]
[424784566,1781160648000,-687.07472415,0.00018049,2]
[424784564,1781160648000,-300.0,0.00018049,2]
[424784540,1781160648000,-1000.0,0.00018,2]
[424784539,1781160648000,-1000.0,0.00018,2]
[424784532,1781160648000,-1000.0,0.00018,2]
[424784536,1781160648000,-1000.0,0.00018,2]
[424784535,1781160648000,-1000.0,0.00018,2]
[424784533,1781160648000,-1000.0,0.00018,2]
[424784537,1781160648000,-1000.0,0.00018,2]
[424784534,1781160648000,-1000.0,0.00018,2]
[424784542,1781160648000,-1000.0,0.00018,2]
[424784546,1781160648000,-1000.0,0.00018,2]
[424784544,1781160648000,-1000.0,0.00018,2]
[424784547,1781160648000,-1000.0,0.00018,2]
[424784548,1781160648000,-1000.0,0.00018,2]
[424784549,1781160648000,-1000.0,0.00018,2]
[424784531,1781160648000,-1000.0,0.00018,2]
[424784545,1781160648000,-1000.0,0.00018,2]
[424784553,1781160648000,-1000.0,0.00018,2]
[424784568,1781160648000,-1136127.91412177,0.0001805,2]
[424784557,1781160648000,-151.0,0.00018,2]
[424784567,1781160648000,-1411.814648,0.0001805,2]
[424784565,1781160648000,-300.0,0.00018049,2]
[424784563,1781160648000,-300.0,0.00018049,2]
[424784556,1781160648000,-167.30116669,0.00018,2]
[424784554,1781160648000,-1008.79341403,0.00018,2]
[424784543,1781160648000,-1000.0,0.00018,2]
[424784555,1781160648000,-500.0,0.00018,7]
[424784552,1781160648000,-1000.0,0.00018,2]
[424784559,1781160648000,-1134.5196,0.00018,2]
[424784550,1781160648000,-1000.0,0.00018,2]
[424784551,1781160648000,-1000.0,0.00018,2]
[424784649,1781160649000,-150.103,0.00019033,2]
[424784633,1781160649000,-279.0,0.00019,2]
[424784625,1781160649000,-3125.69869704,0.00019,2]
[424784631,1781160649000,-1624.0,0.00019,2]
[424784635,1781160649000,-491.0,0.00019,2]
[424784629,1781160649000,-292.0,0.00019,2]
[424784624,1781160649000,-814.2486485,0.00019,2]